fUSD/lending_fUSD_20260226
["ID","MTS","AMOUNT","RATE_DAILY","PERIOD"]
[406751206,1772149854045,-155.0,0.00021599,2]
[406751207,1772149854058,-155.0,0.00021599,2]
[406751208,1772149854067,-450.0,0.00021616,2]
[406751209,1772149854077,-150.0,0.00021839,2]
[406751210,1772149854087,-2000.0,0.00021917,2]
[406751211,1772149854096,-5000.0,0.00021918,2]
[406751212,1772149854106,-3046.41,0.00021918,2]
[406751213,1772149854116,-151.0,0.00021918,2]
[406751214,1772149854125,-222.919324,0.00021918,2]
[406751215,1772149854135,-1202.136029,0.00021918,2]
[406751216,1772149854145,-1202.136029,0.00021918,2]
[406751217,1772149854154,-1202.136029,0.00021918,2]
[406751218,1772149854164,-1202.136029,0.00021918,2]
[406751219,1772149854175,-1202.136029,0.00021918,2]
[406751220,1772149854185,-1202.136029,0.00021918,2]
[406751221,1772149854195,-1202.136029,0.00021918,2]
[406751222,1772149854205,-1202.136029,0.00021918,2]
[406751223,1772149854214,-1202.136029,0.00021918,2]
[406751224,1772149854224,-1202.136029,0.00021918,2]
[406751225,1772149854233,-1202.136029,0.00021918,2]
[406751226,1772149854243,-1202.136029,0.00021918,2]
[406751227,1772149854253,-1202.136029,0.00021918,2]
[406751228,1772149854262,-1202.136029,0.00021918,2]
[406751229,1772149854272,-1202.136029,0.00021918,2]
[406751230,1772149854283,-1202.136029,0.00021918,2]
[406751231,1772149854292,-1202.136029,0.00021918,2]
[406751232,1772149854303,-1202.136029,0.00021918,2]
[406751233,1772149854312,-1202.136029,0.00021918,2]
[406751234,1772149854322,-1202.136037,0.00021918,2]
[406751235,1772149854331,-597.64,0.00021918,2]
[406751236,1772149854341,-596.81,0.00021918,2]
[406751237,1772149854351,-596.59,0.00021918,2]
[406751238,1772149854361,-595.8,0.00021918,2]
[406751239,1772149854370,-2855.81,0.00021918,4]
[406751240,1772149854379,-500.0,0.00021918,2]
[406751241,1772149854389,-650.0,0.00021918,2]
[406751242,1772149854400,-166.0,0.00021918,2]
[406751243,1772149854409,-166.0,0.00021918,2]
[406751244,1772149854418,-166.0,0.00021918,2]
[406751245,1772149854427,-166.0,0.00021918,2]
[406751246,1772149854437,-172.0,0.00021918,2]
[406751247,1772149854446,-166.0,0.00021918,2]
[406751248,1772149854456,-166.0,0.00021918,2]
[406751249,1772149854465,-166.0,0.00021918,2]
[406751250,1772149854475,-166.0,0.00021918,2]
[406751251,1772149854484,-550.0,0.00021918,2]
[406751252,1772149854494,-205.04,0.00021928,2]
[406751253,1772149854504,-541.78326839,0.00021999,2]
[406751254,1772149854514,-2007.56539932,0.00022,2]
[406751255,1772149854523,-164.92,0.00022,2]
[406751256,1772149854533,-160.0,0.00022,2]
[406751257,1772149854542,-366052.90713626,0.00022,4]
[406751258,1772149854551,-132519.02957101,0.00022,2]
[406751259,1772149854560,-5000.0,0.00022,7]
[406751260,1772149854570,-6371.58864924,0.00022049,8]
[406751261,1772149854580,-808.05,0.00022062,30]
[406751262,1772149854589,-672.25845022,0.00022063,8]
[406751263,1772149854599,-31771.2208161,0.00022072,2]
[406751264,1772149854609,-496.63624772,0.000221,2]
[406751265,1772149854618,-241.32306851,0.0002211,2]
[406751266,1772149854627,-550.0,0.00022164,2]
[406751267,1772149854637,-170.37258894,0.00022168,5]
[406751268,1772149854646,-186.0476602,0.00022188,2]
[406751269,1772149854656,-502.0,0.00022329,8]
[406751270,1772149854665,-1000.0,0.00022403,2]
[406751271,1772149854675,-650.0,0.00022466,2]
[406751272,1772149854684,-807.44264524,0.00022466,2]
[406751273,1772149854694,-35662.51254134,0.000225,2]
[406751274,1772149854704,-2900.0,0.000225,15]
[406751275,1772149854714,-3621.38755874,0.000226,2]
[406751276,1772149854724,-6681.1937716,0.00022622,9]
[406751277,1772149854734,-264.21015618,0.00022623,56]
[406751278,1772149854743,-4325.95401207,0.00022669,9]
[406751279,1772149854752,-1188.874643,0.00022701,9]
[406751280,1772149854761,-525.59871522,0.0002271,2]
[406751281,1772149854771,-650.0,0.00022712,2]
[406751282,1772149854780,-163.0,0.00022735,120]
[406751283,1772149854789,-163.0,0.00022735,120]
[406751284,1772149854799,-150.0,0.00022839,2]
[406751285,1772149854809,-152.0,0.00022897,3]
[406751286,1772149854820,-7089.1175888,0.00022981,2]
[406751287,1772149854829,-305096.16650353,0.00023,2]
[406751288,1772149854839,-156.0,0.00023,7]
[406751289,1772149854849,-500.0,0.00023,14]
[406751290,1772149854858,-450.0,0.00023,2]
[406751291,1772149854868,-1586.0,0.00023,2]
[406751292,1772149854877,-160.0,0.00023,2]
[406751293,1772149854887,-600.22,0.00023014,2]
[406751294,1772149854896,-596.81,0.00023014,2]
[406751295,1772149854907,-596.59,0.00023014,2]
[406751296,1772149854916,-602.3,0.00023014,2]
[406751297,1772149854925,-597.05,0.00023014,2]
[406751298,1772149854934,-596.21,0.00023014,2]
[406751299,1772149854943,-595.22,0.00023014,2]
[406751300,1772149854952,-601.11,0.00023014,2]
[406751301,1772149854961,-761.62149945,0.00023014,2]
[406751302,1772149854970,-621.0,0.00023057,2]
[406751303,1772149854980,-150.0,0.00023057,2]
[406751304,1772149854989,-150.0,0.00023057,2]
[406751305,1772149854998,-150.0,0.00023057,2]
[406751306,1772149855007,-253.0,0.00023057,2]
[406751307,1772149855017,-718.0,0.00023124,2]
[406751308,1772149855026,-150.0,0.00023124,2]
[406751309,1772149855035,-267.0,0.00023124,2]
[406751310,1772149855045,-6754.90927692,0.00023196,10]
[406751311,1772149855058,-696.86832461,0.000232,2]
[406751312,1772149855124,-197.64949678,0.0002326,2]
[406751313,1772149855133,-170.37258894,0.00023264,5]
[406751314,1772149855143,-503.88716559,0.00023288,2]
[406751315,1772149855152,-1269.12525047,0.0002334,10]
[406751316,1772149855161,-200.0,0.000235,2]
[406751317,1772149855171,-332.06,0.00023596,30]
[406751318,1772149855180,-7094.0006014,0.0002377,11]
[406751319,1772149855190,-150.0,0.00023839,2]
[406751320,1772149855199,-163.0,0.00023872,120]
[406751321,1772149855208,-163.0,0.00023872,120]
[406751322,1772149855218,-613.0,0.00023917,2]
[406751323,1772149855227,-150.0,0.00023917,2]
[406751324,1772149855237,-150.0,0.00023917,2]
[406751325,1772149855246,-150.0,0.00023917,2]
[406751326,1772149855256,-239.0,0.00023917,2]
[406751327,1772149855265,-2000.0,0.00023948,7]
[406751328,1772149855276,-1287.81508507,0.00023978,11]
[406751329,1772149855285,-1026.31301533,0.00024,2]
[406751330,1772149855296,-3600.0,0.00024,2]
[406751331,1772149855306,-1241.03349299,0.00024,2]
[406751332,1772149855315,-1980.0,0.00024,2]
[406751333,1772149855325,-3498.0,0.00024074,2]
[406751334,1772149855334,-1340.0,0.00024074,2]
[406751335,1772149855344,-618.0,0.00024074,2]
[406751336,1772149855353,-1041.0,0.00024074,2]
[406751337,1772149855363,-1277.0,0.00024074,2]
[406751338,1772149855372,-4572.0,0.00024074,2]
[406751339,1772149855384,-413.0,0.00024074,2]
[406751340,1772149855393,-2456.0,0.00024074,2]
[406751341,1772149855403,-502.0,0.00024131,10]
[406751342,1772149855413,-157.0,0.00024164,7]
[406751343,1772149855422,-423.98457946,0.0002421,2]
[406751344,1772149855432,-3714.65564304,0.0002421,2]
[406751345,1772149855442,-300.0,0.000243,2]
[406751346,1772149855452,-152.0,0.00024312,4]
[406751347,1772149855462,-5005.0,0.00024463,7]
[406751348,1772149855471,-266.0,0.00024507,7]
[406751349,1772149855480,-165.61786292,0.0002455,15]
[406751350,1772149855490,-373.84664321,0.00024581,12]
[406751351,1772149855501,-1386.75552726,0.00024617,12]
[406751352,1772149855512,-2015.885342,0.00024657,12]
[406751353,1772149855522,-1000.0,0.00024658,2]
[406751354,1772149855531,-1537.99,0.00024658,2]
[406751355,1772149855541,-151.0,0.00024658,2]
[406751356,1772149855550,-151.0,0.00024658,2]
[406751357,1772149855560,-151.0,0.00024658,2]
[406751358,1772149855570,-151.0,0.00024658,2]
[406751359,1772149855579,-151.0,0.00024658,2]
[406751360,1772149855589,-151.0,0.00024658,2]
[406751361,1772149855599,-151.0,0.00024658,2]
[406751362,1772149855608,-151.0,0.00024658,2]
[406751363,1772149855617,-151.0,0.00024658,2]
[406751364,1772149855626,-151.0,0.00024658,2]
[406751365,1772149855636,-151.0,0.00024658,2]
[406751366,1772149855645,-151.0,0.00024658,2]
[406751367,1772149855654,-269.189283,0.00024658,2]
[406751368,1772149855663,-196.161387,0.00024658,2]
[406751369,1772149855673,-160.058457,0.00024658,2]
[406751370,1772149855683,-160.058457,0.00024658,2]
[406751371,1772149855692,-160.058457,0.00024658,2]
[406751372,1772149855702,-160.058457,0.00024658,2]
[406751373,1772149855712,-160.058457,0.00024658,2]
[406751374,1772149855722,-160.058457,0.00024658,2]
[406751375,1772149855731,-160.058457,0.00024658,2]
[406751376,1772149855740,-160.058457,0.00024658,2]
[406751377,1772149855749,-160.058457,0.00024658,2]
[406751378,1772149855760,-160.058457,0.00024658,2]
[406751379,1772149855770,-160.058457,0.00024658,2]
[406751380,1772149855780,-160.058457,0.00024658,2]
[406751381,1772149855789,-160.058457,0.00024658,2]
[406751382,1772149855799,-160.058457,0.00024658,2]
[406751383,1772149855808,-160.058457,0.00024658,2]
[406751384,1772149855817,-160.058457,0.00024658,2]
[406751385,1772149855826,-160.058457,0.00024658,2]
[406751386,1772149855835,-160.058457,0.00024658,2]
[406751387,1772149855845,-160.058457,0.00024658,2]
[406751388,1772149855854,-160.058461,0.00024658,2]
[406751389,1772149855864,-704.740282,0.00024658,2]
[406751390,1772149855873,-704.740282,0.00024658,2]
[406751391,1772149855883,-704.740282,0.00024658,2]
[406751392,1772149855892,-704.740282,0.00024658,2]
[406751393,1772149855902,-704.740282,0.00024658,2]
[406751394,1772149855911,-704.740282,0.00024658,2]
[406751395,1772149855920,-704.740282,0.00024658,2]
[406751396,1772149855929,-704.740282,0.00024658,2]
[406751397,1772149855939,-704.740282,0.00024658,2]
[406751398,1772149855948,-704.740282,0.00024658,2]
[406751399,1772149855957,-704.740282,0.00024658,2]
[406751400,1772149855966,-704.740282,0.00024658,2]
[406751401,1772149855976,-704.740282,0.00024658,2]
[406751402,1772149855985,-704.740282,0.00024658,2]
[406751403,1772149855994,-704.740282,0.00024658,2]
[406751404,1772149856003,-704.740282,0.00024658,2]
[406751405,1772149856012,-704.740282,0.00024658,2]
[406751406,1772149856021,-704.740282,0.00024658,2]
[406751407,1772149856031,-704.740282,0.00024658,2]
[406751408,1772149856040,-704.740289,0.00024658,2]
[406751409,1772149856052,-150.0,0.00024658,2]
[406751410,1772149856062,-150.0,0.00024839,2]
[406751411,1772149856071,-808.05,0.00024946,30]
[406751412,1772149856081,-204.0,0.00024959,7]
[406751413,1772149856091,-379.50003935,0.00024997,7]
[406751414,1772149856100,-1116.80907864,0.00025,2]
[406751415,1772149856109,-208.04986397,0.00025,2]
[406751416,1772149856119,-1789.4952511,0.00025,2]
[406751417,1772149856128,-540.0,0.00025,2]
[406751418,1772149856137,-612.49916871,0.00025,2]
[406751419,1772149856146,-3052.42910821,0.00025,2]
[406751420,1772149856155,-167.75948682,0.00025,2]
[406751421,1772149856164,-8741.09521787,0.00025,2]
[406751422,1772149856174,-171.52497607,0.00025,5]
[406751423,1772149856183,-1000.0,0.00025,30]
[406751424,1772149856193,-7146.98280663,0.00025,2]
[406751425,1772149856203,-1000.0,0.00025,2]
[406751426,1772149856212,-4116.42688059,0.00025,120]
[406751427,1772149856221,-5000.0,0.00025,7]
[406751428,1772149856231,-524.0,0.00025,6]
[406751429,1772149856241,-5000.0,0.00025,7]
[406751430,1772149856250,-178.77275479,0.00025,120]
[406751431,1772149856259,-210.0,0.00025,2]
[406751432,1772149856268,-500.0,0.00025,2]
[406751433,1772149856277,-3004.94500503,0.00025,2]
[406751434,1772149856286,-150.0,0.00025,2]
[406751435,1772149856295,-150.0,0.00025,2]
[406751436,1772149856304,-150.0,0.00025,2]
[406751437,1772149856313,-150.0,0.00025,2]
[406751438,1772149856322,-150.0,0.00025,2]
[406751439,1772149856332,-157.007,0.00025,2]
[406751440,1772149856341,-368.1597261,0.00025005,13]
[406751441,1772149856350,-163.0,0.00025066,120]
[406751442,1772149856359,-154.0,0.00025177,7]
[406751443,1772149856368,-155.0,0.00025199,2]
[406751444,1772149856377,-1485.69596944,0.00025256,13]
[406751445,1772149856386,-645.15006689,0.00025271,7]
[406751446,1772149856395,-260.0,0.00025338,7]
[406751447,1772149856405,-6039.02,0.00025357,2]
[406751448,1772149856414,-49680.51883405,0.0002539,2]
[406751449,1772149856423,-595.27494288,0.00025434,13]
[406751450,1772149856432,-537.62505575,0.00025545,7]
[406751451,1772149856441,-659.0393609,0.00025695,14]
[406751452,1772149856450,-152.0,0.00025727,5]
[406751453,1772149856460,-150.0,0.00025839,2]
[406751454,1772149856469,-316.754318,0.00025839,120]
[406751455,1772149856478,-198.0,0.00025848,7]
[406751456,1772149856488,-476.28280005,0.0002585,21]
[406751457,1772149856498,-201.0,0.0002589,7]
[406751458,1772149856507,-150.0,0.0002589,2]
[406751459,1772149856516,-1584.63641162,0.00025894,14]
[406751460,1772149856525,-150.0,0.0002592,30]
[406751461,1772149856534,-152.0,0.0002592,30]
[406751462,1772149856543,-502.0,0.00025933,11]
[406751463,1772149856553,-430.1000446,0.00025956,7]
[406751464,1772149856562,-602.55312345,0.0002599,2]
[406751465,1772149856571,-4535.62774981,0.00026,2]
[406751466,1772149856580,-217.08185032,0.00026,2]
[406751467,1772149856589,-3000.0,0.00026,120]
[406751468,1772149856598,-3361.20850344,0.00026203,2]
[406751469,1772149856608,-150.0,0.0002625,7]
[406751470,1772149856618,-157.0,0.0002625,7]
[406751471,1772149856627,-233.0,0.00026258,14]
[406751472,1772149856636,-642.14598938,0.00026287,15]
[406751473,1772149856646,-279.15381049,0.000263,2]
[406751474,1772149856655,-163.0,0.00026319,120]
[406751475,1772149856665,-322.57503345,0.00026367,7]
[406751476,1772149856674,-870.48485756,0.00026386,15]
[406751477,1772149856684,-27554.73829097,0.000264,2]
[406751478,1772149856694,-1683.5768538,0.00026533,15]
[406751479,1772149856703,-179.0,0.00026741,14]
[406751480,1772149856714,-324.46241351,0.00026813,16]
[406751481,1772149856723,-150.0,0.00026839,2]
[406751482,1772149856732,-250.0,0.00027,2]
[406751483,1772149856742,-1037.57125787,0.00027,2]
[406751484,1772149856751,-530.0,0.00027,2]
[406751485,1772149856761,-2419.987465,0.00027,2]
[406751486,1772149856770,-550.0,0.00027,2]
[406751487,1772149856780,-215.0500223,0.00027052,7]
[406751488,1772149856789,-3498.0,0.00027074,2]
[406751489,1772149856798,-1338.0,0.00027074,2]
[406751490,1772149856808,-618.0,0.00027074,2]
[406751491,1772149856818,-1041.0,0.00027074,2]
[406751492,1772149856827,-1277.0,0.00027074,2]
[406751493,1772149856836,-4572.0,0.00027074,2]
[406751494,1772149856845,-413.0,0.00027074,2]
[406751495,1772149856855,-2456.0,0.00027074,2]
[406751496,1772149856865,-949.91899571,0.00027077,16]
[406751497,1772149856875,-3700.68,0.00027123,2]
[406751498,1772149856885,-656.6002978,0.0002714,16]
[406751499,1772149856894,-152.0,0.00027143,6]
[406751500,1772149856904,-228.0,0.00027147,14]
[406751501,1772149856914,-241.97997969,0.00027156,16]
[406751502,1772149856923,-1865.99205073,0.00027171,16]
[406751503,1772149856933,-150.0,0.00027185,2]
[406751504,1772149856943,-264.21015618,0.00027355,110]
[406751505,1772149856952,-332.06,0.00027361,30]
[406751506,1772149856961,-150.0,0.00027369,2]
[406751507,1772149856971,-4123.66997078,0.0002739,2]
[406751508,1772149856980,-8147.40532769,0.0002739,2]
[406751509,1772149856989,-2104.942,0.00027397,2]
[406751510,1772149856999,-521.12,0.00027397,2]
[406751511,1772149857009,-1451.41,0.00027397,2]
[406751512,1772149857018,-1537.99,0.00027397,2]
[406751513,1772149857028,-300.0,0.00027397,2]
[406751514,1772149857037,-1000.09,0.00027397,2]
[406751515,1772149857048,-281.026721,0.00027397,2]
[406751516,1772149857061,-281.026721,0.00027397,2]
[406751517,1772149857070,-281.026721,0.00027397,2]
[406751518,1772149857080,-281.026721,0.00027397,2]
[406751519,1772149857089,-281.026721,0.00027397,2]
[406751520,1772149857099,-281.026721,0.00027397,2]
[406751521,1772149857109,-281.026721,0.00027397,2]
[406751522,1772149857118,-281.026721,0.00027397,2]
[406751523,1772149857131,-281.026721,0.00027397,2]
[406751524,1772149857141,-281.026721,0.00027397,2]
[406751525,1772149857150,-281.026721,0.00027397,2]
[406751526,1772149857160,-281.026721,0.00027397,2]
[406751527,1772149857169,-281.026721,0.00027397,2]
[406751528,1772149857179,-281.026721,0.00027397,2]
[406751529,1772149857189,-281.026721,0.00027397,2]
[406751530,1772149857198,-281.026721,0.00027397,2]
[406751531,1772149857208,-281.026721,0.00027397,2]
[406751532,1772149857217,-281.026721,0.00027397,2]
[406751533,1772149857227,-281.026721,0.00027397,2]
[406751534,1772149857237,-281.02673,0.00027397,2]
[406751535,1772149857246,-1000.0,0.00027397,20]
[406751536,1772149857256,-151.0,0.00027397,2]
[406751537,1772149857265,-151.0,0.00027397,2]
[406751538,1772149857274,-210.753149,0.00027397,2]
[406751539,1772149857283,-2075.165653,0.00027397,2]
[406751540,1772149857292,-2075.165653,0.00027397,2]
[406751541,1772149857302,-2075.165653,0.00027397,2]
[406751542,1772149857311,-2075.165653,0.00027397,2]
[406751543,1772149857320,-2075.165653,0.00027397,2]
[406751544,1772149857330,-2075.165653,0.00027397,2]
[406751545,1772149857340,-563.819191,0.00027397,2]
[406751546,1772149857349,-2075.165653,0.00027397,2]
[406751547,1772149857359,-563.819191,0.00027397,2]
[406751548,1772149857368,-2075.165653,0.00027397,2]
[406751549,1772149857378,-563.819191,0.00027397,2]
[406751550,1772149857388,-2075.165653,0.00027397,2]
[406751551,1772149857398,-563.819191,0.00027397,2]
[406751552,1772149857408,-2075.165653,0.00027397,2]
[406751553,1772149857418,-563.819191,0.00027397,2]
[406751554,1772149857427,-2075.165653,0.00027397,2]
[406751555,1772149857437,-563.819191,0.00027397,2]
[406751556,1772149857447,-2075.165653,0.00027397,2]
[406751557,1772149857456,-563.819191,0.00027397,2]
[406751558,1772149857466,-2075.165653,0.00027397,2]
[406751559,1772149857476,-563.819191,0.00027397,2]
[406751560,1772149857485,-2075.165653,0.00027397,2]
[406751561,1772149857495,-563.819191,0.00027397,2]
[406751562,1772149857505,-2075.165653,0.00027397,2]
[406751563,1772149857515,-563.819191,0.00027397,2]
[406751564,1772149857525,-2075.165653,0.00027397,2]
[406751565,1772149857534,-563.819191,0.00027397,2]
[406751566,1772149857545,-2075.165653,0.00027397,2]
[406751567,1772149857555,-563.819191,0.00027397,2]
[406751568,1772149857565,-2075.165653,0.00027397,2]
[406751569,1772149857575,-563.819191,0.00027397,2]
[406751570,1772149857586,-2075.165653,0.00027397,2]
[406751571,1772149857595,-563.819191,0.00027397,2]
[406751572,1772149857605,-2075.165646,0.00027397,2]
[406751573,1772149857617,-563.819191,0.00027397,2]
[406751574,1772149857627,-563.819191,0.00027397,2]
[406751575,1772149857637,-563.819191,0.00027397,2]
[406751576,1772149857646,-563.819191,0.00027397,2]
[406751577,1772149857656,-563.819191,0.00027397,2]
[406751578,1772149857666,-563.819183,0.00027397,2]
[406751579,1772149857675,-201.90449647,0.000275,2]
[406751580,1772149857685,-551.56008142,0.000275,2]
[406751581,1772149857694,-160.0,0.0002754,120]
[406751582,1772149857704,-557.07896486,0.00027561,17]
[406751583,1772149857714,-173.0,0.00027694,14]
[406751584,1772149857724,-364.61995261,0.00027732,17]
[406751585,1772149857734,-502.0,0.00027736,13]
[406751586,1772149857743,-176.0,0.00027739,14]
[406751587,1772149857755,-1053.88100299,0.00027768,17]
[406751588,1772149857765,-2005.13329089,0.0002781,17]
[406751589,1772149857775,-808.05,0.0002783,30]
[406751590,1772149857786,-150.0,0.00027839,2]
[406751591,1772149857796,-227.13705618,0.00027969,17]
[406751592,1772149857805,-689.01703598,0.00027993,17]
[406751593,1772149857815,-51035.42614098,0.00028,2]
[406751594,1772149857824,-160.0,0.00028,2]
[406751595,1772149857834,-1000.0,0.00028,30]
[406751596,1772149857845,-1117.22012779,0.00028,2]
[406751597,1772149857854,-173.95657067,0.00028,30]
[406751598,1772149857864,-269.0,0.00028125,14]
[406751599,1772149857874,-166.0,0.000283,21]
[406751600,1772149857884,-249.30976928,0.00028376,18]
[406751601,1772149857894,-2400.89505961,0.00028448,18]
[406751602,1772149857903,-1237.27714852,0.00028458,18]
[406751603,1772149857913,-4705.0,0.00028463,7]
[406751604,1772149857923,-238.40740788,0.00028519,18]
[406751605,1772149857932,-150.0,0.00028544,2]
[406751606,1772149857942,-152.0,0.00028558,7]
[406751607,1772149857952,-496.10730052,0.00028767,2]
[406751608,1772149857962,-150.0,0.00028839,2]
[406751609,1772149857972,-735.88808259,0.00028846,19]
[406751610,1772149857982,-504.11997331,0.00029,2]
[406751611,1772149857991,-315.73583217,0.00029,120]
[406751612,1772149858001,-48760.5744457,0.00029,4]
[406751613,1772149858011,-600.0,0.00029,2]
[406751614,1772149858021,-2000.0,0.00029,2]
[406751615,1772149858031,-160.0,0.00029,30]
[406751616,1772149858040,-381.722795,0.00029034,19]
[406751617,1772149858053,-789.69551622,0.00029059,19]
[406751618,1772149858063,-2462.85885098,0.00029087,19]
[406751619,1772149858074,-1240.79863052,0.00029149,19]
[406751620,1772149858084,-163.0,0.00029259,21]
[406751621,1772149858093,-283.41457855,0.00029309,19]
[406751622,1772149858103,-502.0,0.00029538,14]
[406751623,1772149858113,-477.85915955,0.00029692,20]
[406751624,1772149858123,-543.36428895,0.00029698,2]
[406751625,1772149858133,-782.7591292,0.00029699,20]
[406751626,1772149858143,-2796.65682833,0.00029725,20]
[406751627,1772149858153,-150.0,0.00029839,2]
[406751628,1772149858163,-1420.67329406,0.0002984,20]
[406751629,1772149858172,-79213.55038344,0.000299,2]
[406751630,1772149858182,-337.75797128,0.0002994,30]
[406751631,1772149858192,-150.0,0.00029971,2]
[406751632,1772149858201,-152.0,0.00029973,8]
[406751633,1772149858211,-238.22486226,0.0002999,2]
[406751634,1772149858221,-19951.774444,0.0003,2]
[406751635,1772149858232,-320.656617,0.0003,2]
[406751636,1772149858242,-1825.4073994,0.0003,2]
[406751637,1772149858252,-163.72680738,0.0003,2]
[406751638,1772149858262,-7518.55106234,0.0003,2]
[406751639,1772149858272,-5000.0,0.0003,7]
[406751640,1772149858282,-1000.0,0.0003,30]
[406751641,1772149858292,-159.48,0.0003,2]
[406751642,1772149858303,-16300.0,0.0003,30]
[406751643,1772149858312,-1000.0,0.0003,120]
[406751644,1772149858322,-1000.0,0.0003,120]
[406751645,1772149858332,-1000.0,0.0003,120]
[406751646,1772149858342,-212.93937495,0.0003,5]
[406751647,1772149858352,-181.0,0.0003,120]
[406751648,1772149858361,-181.0,0.0003,120]
[406751649,1772149858371,-181.0,0.0003,120]
[406751650,1772149858381,-181.0,0.0003,120]
[406751651,1772149858390,-181.0,0.0003,120]
[406751652,1772149858399,-1000.0,0.0003,10]
[406751653,1772149858408,-1001.28645872,0.0003,15]
[406751654,1772149858418,-5000.0,0.0003,7]
[406751655,1772149858428,-1005.16,0.0003,30]
[406751656,1772149858438,-600.0,0.0003,120]
[406751657,1772149858447,-10000.0,0.0003,10]
[406751658,1772149858456,-2000.0,0.0003,20]
[406751659,1772149858465,-160.0,0.0003,30]
[406751660,1772149858475,-160.0,0.0003,10]
[406751661,1772149858484,-160.0,0.0003,120]
[406751662,1772149858493,-1533.194879,0.0003,2]
[406751663,1772149858503,-227.06740013,0.00030062,21]
[406751664,1772149858513,-3498.0,0.00030074,2]
[406751665,1772149858523,-618.0,0.00030074,2]
[406751666,1772149858533,-1041.0,0.00030074,2]
[406751667,1772149858542,-1277.0,0.00030074,2]
[406751668,1772149858551,-4572.0,0.00030074,2]
[406751669,1772149858561,-413.0,0.00030074,2]
[406751670,1772149858571,-2456.0,0.00030074,2]
[406751671,1772149858581,-1078.32115118,0.0003013,2]
[406751672,1772149858590,-13911.57912442,0.0003013,2]
[406751673,1772149858600,-636.80628799,0.0003013,2]
[406751674,1772149858610,-202.58394912,0.0003013,2]
[406751675,1772149858619,-7764.91393431,0.0003013,2]
[406751676,1772149858630,-10000.0,0.00030137,30]
[406751677,1772149858640,-1537.99,0.00030137,2]
[406751678,1772149858649,-151.0,0.00030137,7]
[406751679,1772149858659,-151.0,0.00030137,7]
[406751680,1772149858668,-164.376229,0.00030137,7]
[406751681,1772149858678,-15603.19237818,0.000302,2]
[406751682,1772149858687,-220.7,0.000302,30]
[406751683,1772149858697,-192.0,0.00030313,21]
[406751684,1772149858706,-514.13582072,0.00030351,21]
[406751685,1772149858716,-3059.72565124,0.00030364,21]
[406751686,1772149858726,-1531.67826532,0.00030531,21]
[406751687,1772149858736,-1020.01603378,0.00030556,21]
[406751688,1772149858746,-808.05,0.00030714,30]
[406751689,1772149858756,-150.0,0.00030839,2]
[406751690,1772149858920,-1615.83521724,0.0003084,2]
[406751691,1772149858930,-51784.63163394,0.00031,2]
[406751692,1772149858941,-344.6137797,0.00031,5]
[406751693,1772149858951,-92178.1913951,0.00031,3]
[406751694,1772149858961,-4422.92694121,0.00031,120]
[406751695,1772149858971,-160.0,0.00031,120]
[406751696,1772149858980,-650.0,0.00031,2]
[406751697,1772149858990,-3192.41859706,0.00031002,22]
[406751698,1772149859001,-561.31421819,0.00031009,22]
[406751699,1772149859010,-332.06,0.00031126,60]
[406751700,1772149859019,-1604.06943959,0.00031222,22]
[406751701,1772149859030,-1022.31206757,0.00031304,23]
[406751702,1772149859040,-502.0,0.0003134,16]
[406751703,1772149859050,-152.0,0.00031388,9]
[406751704,1772149859063,-246.4546947,0.000314,30]
[406751705,1772149859072,-19856.54647156,0.0003143,4]